[Event "EWIRCC 2019"]
[Site "Monte-Carlo"]
[Date "2019.12.01"]
[Round "6.10"]
[White "Solozhenkina, Elizaveta"]
[Black "Mkrtchian, Lilit"]
[Result "0-1"]
[ECO "C03"]
[WhiteElo "2314"]
[BlackElo "2402"]
[Annotator "NA RC"]
[PlyCount "56"]
[EventDate "2019.11.28"]
[EventType "swiss"]
[EventCountry "MNC"]
[SourceTitle "playchess.com"]
[Source "ChessBase"]
[SourceQuality "1"]
[TimeControl "5400+30"]

1. e4 {[%emt 1:15:12]} e6 {[%emt 1:15:15]} 2. d4 {[%emt 0:00:21]} d5 {[%emt 0:00:21]} 3. Nd2 {[%emt 0:00:21]} Be7 {[%emt 0:00:28]} 4. Bd3 {[%emt 0:00:25]} c5 {[%emt 0:00:25]} 5. dxc5 {[%emt 0:00:24]} Nf6 {[%emt 0:00:23]} 6. Qe2 {[%emt 0:00:22]} O-O {[%emt 0:00:26]} 7. Ngf3 {[%emt 0:00:22]} a5 {[%emt 0:00:24]} 8. O-O {[%emt 0:00:23]} Na6 {[%emt 0:00:28]} 9. e5 {[%emt 0:00:25]} Nd7 {[%emt 0:00:23]} 10. c4 {[%emt 0:00:22]} Naxc5 {[%emt 0:01:40]} 11. Bc2 {[%emt 0:02:41]} dxc4 {[%emt 0:02:36]} 12. Nxc4 {[%emt 0:00:53]} b5 {[%emt 0:00:50]} 13. Nd6 {[%emt 0:05:33]} Nxe5 {[%emt 0:01:02]} 14. Nxe5 {[%emt 0:02:47]} Bxd6 {[%emt 0:00:55]} 15. Rd1 {[%emt 0:00:21]} Qc7 {[%emt 0:00:51]} 16. Bf4 {[%emt 0:00:44]} Bb7 {[%emt 0:02:48]} 17. Rac1 {[%emt 0:04:17]} Bd5 {[%emt 0:01:33]} 18. Bb1 {[%emt 0:01:04]} Rac8 {[%emt 0:02:50]} 19. Rc3 {[%emt 0:00:43]} f5 {[%emt 0:00:57]} 20. Rh3 {[%emt 0:01:50]} Ne4 {[%emt 0:02:28]} 21. Bxe4 {[%emt 0:00:21]} fxe4 {[%emt 0:00:33]} 22. Qh5 {[%emt 0:00:47]} h6 {[%emt 0:02:09]} 23. g3 {[%emt 0:00:39]} Rf5 {[%emt 0:00:37]} 24. Qg6 {[%emt 0:00:28]} Bxe5 {[%emt 0:00:31]} 25. Rxd5 {[%emt 0:00:24]} Rf6 {[%emt 0:00:29]} 26. Qg4 {[%emt 0:00:31]} exd5 {[%emt 0:01:02]} 27. Bxe5 {[%emt 0:00:25]} Qc1+ {[%emt 0:00:24]} 28. Kg2 {[%emt 0:00:21]} Rxf2+ {[%emt 0:00:38]} 0-1

[Event "EWIRCC 2019"]
[Site "Monte-Carlo"]
[Date "2019.12.01"]
[Round "6.11"]
[White "Worek, Joanna"]
[Black "Johansson, Viktoria"]
[Result "1-0"]
[ECO "B32"]
[WhiteElo "2316"]
[BlackElo "2120"]
[Annotator "NA"]
[PlyCount "57"]
[EventDate "2019.11.28"]
[EventType "swiss"]
[EventCountry "MNC"]
[SourceTitle "playchess.com"]
[Source "ChessBase"]
[SourceQuality "1"]
[TimeControl "5400+30"]

1. e4 {[%emt 1:15:12]} c5 {[%emt 1:15:11]} 2. Nf3 {[%emt 0:00:22]} Nc6 {[%emt 0:00:22]} 3. d4 {[%emt 0:00:24]} cxd4 {[%emt 0:00:27]} 4. Nxd4 {[%emt 0:00:21]} e5 {[%emt 0:00:25]} 5. Nb3 {[%emt 0:01:06]} Bb4+ {[%emt 0:00:51]} 6. Bd2 {[%emt 0:00:35]} Bxd2+ {[%emt 0:00:41]} 7. Qxd2 {[%emt 0:00:22]} d6 {[%emt 0:00:28]} 8. c4 {[%emt 0:00:45]} Nf6 {[%emt 0:00:38]} 9. Nc3 {[%emt 0:00:22]} O-O {[%emt 0:02:50]} 10. Rd1 {[%emt 0:03:20]} Ne8 {[%emt 0:00:45]} 11. c5 {[%emt 0:01:06]} Bg4 {[%emt 0:05:59]} 12. Be2 {[%emt 0:00:31]} Bxe2 {[%emt 0:00:34]} 13. Qxe2 {[%emt 0:00:29]} Qg5 {[%emt 0:00:38]} 14. O-O {[%emt 0:01:13]} dxc5 {[%emt 0:00:28]} 15. Nxc5 {[%emt 0:00:22]} Nf6 {[%emt 0:01:09]} 16. Nd5 {[%emt 0:02:09]} Nd4 {[%emt 0:01:05]} 17. Qe3 {[%emt 0:02:00]} Qh4 {[%emt 0:01:11]} 18. Nxf6+ {[%emt 0:00:50]} gxf6 {[%emt 0:00:37]} 19. Nd7 {[%emt 0:02:24]} Rfd8 {[%emt 0:00:57]} 20. g3 {[%emt 0:00:22]} Qh3 {[%emt 0:01:27]} 21. Nxf6+ {[%emt 0:00:24]} Kh8 {[%emt 0:00:47]} 22. Nd5 {[%emt 0:03:33]} Rd6 {[%emt 0:00:30]} 23. f4 {[%emt 0:00:23]} Rh6 {[%emt 0:01:46]} 24. Rf2 {[%emt 0:00:22]} f6 {[%emt 0:01:12]} 25. fxe5 {[%emt 0:00:48]} fxe5 {[%emt 0:00:21]} 26. Rxd4 {[%emt 0:00:53]} Rc8 {[%emt 0:01:06]} 27. Rd1 {[%emt 0:00:28]} Kg7 {[%emt 0:00:36]} 28. Qg5+ {[%emt 0:00:26]} Kh8 {[%emt 0:00:27]} 29. Qxe5+ {[%emt 0:00:23]} 1-0

[Event "EWIRCC 2019"]
[Site "Monte-Carlo"]
[Date "2019.12.01"]
[Round "6.14"]
[White "Dornbusch, Tatiana"]
[Black "Gunina, Valentina"]
[Result "0-1"]
[ECO "D37"]
[WhiteElo "2269"]
[BlackElo "2509"]
[Annotator "ChessBase"]
[PlyCount "70"]
[EventDate "2019.11.28"]
[EventType "swiss"]
[EventCountry "MNC"]
[SourceTitle "playchess.com"]
[Source "ChessBase"]
[SourceQuality "1"]
[TimeControl "5400+30"]

1. d4 {[%emt 1:15:12]} Nf6 {[%emt 1:15:11]} 2. Nf3 {[%emt 0:00:21]} d5 {[%emt 0:00:23]} 3. c4 {[%emt 0:00:22]} e6 {[%emt 0:00:21]} 4. Nc3 {[%emt 0:00:24]} a6 {[%emt 0:00:22]} 5. cxd5 {[%emt 0:01:11]} exd5 {[%emt 0:00:21]} 6. Bg5 {[%emt 0:00:24]} Be6 {[%emt 0:00:27]} 7. e3 {[%emt 0:00:29]} Nbd7 {[%emt 0:00:31]} 8. Bd3 {[%emt 0:01:04]} h6 {[%emt 0:00:23]} 9. Bh4 {[%emt 0:00:39]} g5 {[%emt 0:00:27]} 10. Bg3 {[%emt 0:00:24]} Nh5 {[%emt 0:00:22]} 11. Be5 {[%emt 0:01:15]} Nhf6 {[%emt 0:00:35]} 12. O-O {[%emt 0:01:33]} g4 {[%emt 0:00:35]} 13. Bxf6 {[%emt 0:02:34]} Qxf6 {[%emt 0:00:22]} 14. Nd2 {[%emt 0:00:20]} O-O-O {[%emt 0:01:21]} 15. f4 {[%emt 0:00:59]} gxf3 {[%emt 0:00:49]} 16. Qxf3 {[%emt 0:02:04]} Qg5 {[%emt 0:00:22]} 17. Qf4 {[%emt 0:01:34]} Bd6 {[%emt 0:01:48]} 18. Qxg5 {[%emt 0:00:26]} hxg5 {[%emt 0:00:21]} 19. g3 {[%emt 0:00:24]} Rh6 {[%emt 0:00:22]} 20. Rf2 {[%emt 0:01:30]} Rdh8 {[%emt 0:00:25]} 21. Nf1 {[%emt 0:00:25]} Nf6 {[%emt 0:00:59]} 22. Be2 {[%emt 0:02:28]} c6 {[%emt 0:00:25]} 23. Rc1 {[%emt 0:00:30]} Kd7 {[%emt 0:00:31]} 24. Bf3 {[%emt 0:00:29]} Ke7 {[%emt 0:01:20]} 25. e4 {[%emt 0:00:41]} dxe4 {[%emt 0:01:38]} 26. Bxe4 {[%emt 0:00:40]} Ng4 {[%emt 0:00:37]} 27. Re2 {[%emt 0:00:23]} Kf8 {[%emt 0:00:21]} 28. d5 {[%emt 0:00:30]} Bc5+ {[%emt 0:03:30]} 29. Kg2 {[%emt 0:00:48]} cxd5 {[%emt 0:00:51]} 30. Nxd5 {[%emt 0:00:44]} Ba7 {[%emt 0:00:23]} 31. Rc7 {[%emt 0:01:39]} Nxh2 {[%emt 0:00:44]} 32. Nxh2 {[%emt 0:01:14]} Rxh2+ {[%emt 0:00:22]} 33. Kf1 {[%emt 0:00:33]} Rh1+ {[%emt 0:00:23]} 34. Kg2 {[%emt 0:01:24]} R8h2+ {[%emt 0:00:23]} 35. Kf3 {[%emt 0:00:26]} Rf1+ {[%emt 0:00:21]} 0-1

[Event "EWIRCC 2019"]
[Site "Monte-Carlo"]
[Date "2019.12.01"]
[Round "6.16"]
[White "Zaksaite, Salomeja"]
[Black "Socko, Monika"]
[Result "1-0"]
[ECO "B14"]
[WhiteElo "2202"]
[BlackElo "2417"]
[Annotator "NA RC"]
[PlyCount "169"]
[EventDate "2019.11.28"]
[EventType "swiss"]
[EventCountry "MNC"]
[SourceTitle "playchess.com"]
[Source "ChessBase"]
[SourceQuality "1"]
[TimeControl "5400+30"]

1. e4 {[%emt 1:15:15]} c6 {[%emt 1:15:11]} 2. d4 {[%emt 0:00:29]} d5 {[%emt 0:00:22]} 3. exd5 {[%emt 0:00:21]} cxd5 {[%emt 0:00:21]} 4. c4 {[%emt 0:00:21]} Nf6 {[%emt 0:00:24]} 5. Nc3 {[%emt 0:00:22]} e6 {[%emt 0:00:22]} 6. Nf3 {[%emt 0:00:33]} Bb4 {[%emt 0:00:22]} 7. c5 {[%emt 0:01:50]} O-O {[%emt 0:02:13]} 8. Bd3 {[%emt 0:00:38]} Ne4 {[%emt 0:00:52]} 9. O-O {[%emt 0:00:28]} f5 {[%emt 0:00:33]} 10. Qc2 {[%emt 0:02:40]} Nc6 {[%emt 0:01:05]} 11. a3 {[%emt 0:00:23]} Bxc3 {[%emt 0:00:42]} 12. bxc3 {[%emt 0:00:21]} Bd7 {[%emt 0:00:22]} 13. c4 {[%emt 0:01:08]} Be8 {[%emt 0:00:42]} 14. cxd5 {[%emt 0:01:53]} exd5 {[%emt 0:00:28]} 15. Bb5 {[%emt 0:00:55]} f4 {[%emt 0:05:22]} 16. Bxc6 {[%emt 0:03:01]} bxc6 {[%emt 0:00:21]} 17. Ne5 {[%emt 0:00:56]} Ng5 {[%emt 0:01:36]} 18. f3 {[%emt 0:00:56]} Rf6 {[%emt 0:01:42]} 19. Re1 {[%emt 0:01:36]} Bd7 {[%emt 0:00:57]} 20. Bd2 {[%emt 0:00:44]} Nf7 {[%emt 0:01:57]} 21. Qd3 {[%emt 0:01:30]} Bf5 {[%emt 0:00:54]} 22. Qe2 {[%emt 0:01:17]} g5 {[%emt 0:00:44]} 23. a4 {[%emt 0:00:22]} Re6 {[%emt 0:00:44]} 24. Nxf7 {[%emt 0:01:23]} Kxf7 {[%emt 0:03:44]} 25. Qa6 Qc8 {[%emt 0:00:00]} 26. Qxc8 {[%emt 0:01:15]} Rxc8 {[%emt 0:00:00]} 27. Rxe6 {[%emt 0:00:37]} Kxe6 {[%emt 0:00:00]} 28. g3 {[%emt 0:00:27]} fxg3 {[%emt 0:00:00]} 29. hxg3 {[%emt 0:00:23]} g4 {[%emt 0:00:00]} 30. Re1+ {[%emt 0:00:26]} Kf6 {[%emt 0:00:00]} 31. fxg4 {[%emt 0:00:50]} Bxg4 {[%emt 0:00:14]} 32. Rb1 {[%emt 0:01:28]} Re8 {[%emt 0:01:07]} 33. Rb7 {[%emt 0:00:24]} Re2 {[%emt 0:00:21]} 34. Bf4 {[%emt 0:00:21]} Ra2 {[%emt 0:00:21]} 35. Rxa7 {[%emt 0:00:33]} Kf5 {[%emt 0:00:21]} 36. Be5 {[%emt 0:01:06]} Ke4 {[%emt 0:00:43]} 37. Rxh7 {[%emt 0:00:49]} Ke3 {[%emt 0:00:32]} 38. Rf7 {[%emt 0:00:40]} Bf3 {[%emt 0:00:28]} 39. g4 {[%emt 0:00:36]} Rg2+ {[%emt 0:01:09]} 40. Kf1 {[%emt 0:00:24]} Ra2 {[%emt 0:01:33]} 41. Kg1 {[%emt 0:00:25]} Bxg4 {[%emt 0:01:01]} 42. Rf1 {[%emt 0:00:35]} Bf3 {[%emt 0:00:28]} 43. Re1+ {[%emt 0:00:23]} Kd3 {[%emt 0:00:20]} 44. Rb1 {[%emt 0:00:42]} Be4 {[%emt 0:00:29]} 45. a5 {[%emt 0:00:23]} Ke3 {[%emt 0:00:50]} 46. Re1+ {[%emt 0:00:36]} Kd3 {[%emt 0:00:26]} 47. Rb1 {[%emt 0:00:25]} Kc3 {[%emt 0:00:30]} 48. Rb6 {[%emt 0:00:27]} Kd3 {[%emt 0:00:32]} 49. Rxc6 {[%emt 0:00:29]} Rxa5 {[%emt 0:01:05]} 50. Rb6 {[%emt 0:00:29]} Ke3 {[%emt 0:00:00]} 51. Rb3+ {[%emt 0:00:23]} Bd3 {[%emt 0:00:04]} 52. c6 {[%emt 0:00:33]} Ra1+ {[%emt 0:00:21]} 53. Kg2 {[%emt 0:00:32]} Rc1 {[%emt 0:00:21]} 54. c7 {[%emt 0:00:22]} Ke4 {[%emt 0:00:25]} 55. Rb8 {[%emt 0:00:31]} Ba6 {[%emt 0:00:20]} 56. Ra8 {[%emt 0:00:30]} Bb7 {[%emt 0:00:21]} 57. Rb8 {[%emt 0:00:42]} Ba6 {[%emt 0:00:21]} 58. Rb6 {[%emt 0:00:33]} Bc8 {[%emt 0:00:27]} 59. Rf6 {[%emt 0:00:32]} Rc2+ {[%emt 0:00:29]} 60. Kg3 {[%emt 0:00:29]} Rc3+ {[%emt 0:00:26]} 61. Kh4 {[%emt 0:00:23]} Rc1 {[%emt 0:00:29]} 62. Rf4+ {[%emt 0:00:21]} Kd3 {[%emt 0:00:20]} 63. Kg5 {[%emt 0:00:26]} Rc6 {[%emt 0:00:25]} 64. Rf6 {[%emt 0:00:47]} Rc2 {[%emt 0:00:34]} 65. Rf8 {[%emt 0:00:34]} Be6 {[%emt 0:00:43]} 66. Kf6 {[%emt 0:00:22]} Bg4 {[%emt 0:00:39]} 67. Ke7 {[%emt 0:00:24]} Rc6 {[%emt 0:00:24]} 68. Rg8 {[%emt 0:00:42]} Bf5 {[%emt 0:00:28]} 69. Rg5 {[%emt 0:00:25]} Bc8 {[%emt 0:00:29]} 70. Kd8 {[%emt 0:00:23]} Ba6 {[%emt 0:00:27]} 71. Rg7 {[%emt 0:00:35]} Kc4 {[%emt 0:00:30]} 72. Rd7 {[%emt 0:00:23]} Bb7 {[%emt 0:00:31]} 73. Ke7 {[%emt 0:00:35]} Kb4 {[%emt 0:01:16]} 74. Rd8 {[%emt 0:00:44]} Ka5 {[%emt 0:01:10]} 75. Kd7 {[%emt 0:00:27]} Kb6 {[%emt 0:00:44]} 76. c8=Q {[%emt 0:00:25]} Bxc8+ {[%emt 0:00:21]} 77. Rxc8 {[%emt 0:00:21]} Rh6 {[%emt 0:00:21]} 78. Rb8+ {[%emt 0:00:00]} Ka6 {[%emt 0:00:11]} 79. Bd6 {[%emt 0:00:07]} Rh1 {[%emt 0:00:32]} 80. Kc6 {[%emt 0:00:24]} Ka7 {[%emt 0:00:26]} 81. Rb7+ {[%emt 0:00:27]} Ka8 {[%emt 0:00:30]} 82. Rb5 {[%emt 0:00:27]} Rc1+ {[%emt 0:00:23]} 83. Bc5 {[%emt 0:00:31]} Rd1 {[%emt 0:00:32]} 84. Ra5+ {[%emt 0:00:25]} Kb8 {[%emt 0:00:21]} 85. Bd6+ {[%emt 0:00:22]} 1-0

[Event "EWIRCC 2019"]
[Site "Monte-Carlo"]
[Date "2019.12.01"]
[Round "6.18"]
[White "Guichard, Pauline"]
[Black "Berzina, Ilze"]
[Result "1/2-1/2"]
[ECO "A28"]
[WhiteElo "2407"]
[BlackElo "2211"]
[Annotator "NA"]
[PlyCount "98"]
[EventDate "2019.11.28"]
[EventType "swiss"]
[EventCountry "MNC"]
[SourceTitle "playchess.com"]
[Source "ChessBase"]
[SourceQuality "1"]
[TimeControl "5400+30"]

1. c4 {[%emt 1:15:12]} e5 {[%emt 1:15:14]} 2. Nc3 {[%emt 0:00:21]} Nf6 {[%emt 0:00:23]} 3. Nf3 {[%emt 0:00:22]} Nc6 {[%emt 0:00:24]} 4. e3 {[%emt 0:00:23]} d5 {[%emt 0:01:12]} 5. cxd5 {[%emt 0:00:40]} Nxd5 {[%emt 0:00:22]} 6. Bb5 {[%emt 0:00:34]} Nxc3 {[%emt 0:00:33]} 7. bxc3 {[%emt 0:01:32]} Bd6 {[%emt 0:01:27]} 8. d4 {[%emt 0:01:42]} Bd7 {[%emt 0:01:13]} 9. O-O {[%emt 0:02:03]} e4 {[%emt 0:04:13]} 10. Nd2 {[%emt 0:01:46]} Qg5 {[%emt 0:00:28]} 11. Bxc6 {[%emt 0:01:42]} Bxc6 {[%emt 0:00:49]} 12. c4 {[%emt 0:03:50]} O-O {[%emt 0:00:35]} 13. c5 {[%emt 0:02:51]} Be7 {[%emt 0:00:37]} 14. Re1 {[%emt 0:00:41]} Rad8 {[%emt 0:00:56]} 15. Qe2 {[%emt 0:00:29]} Qg6 {[%emt 0:01:18]} 16. Nf1 {[%emt 0:00:36]} Rd5 {[%emt 0:00:59]} 17. a4 {[%emt 0:01:37]} h5 {[%emt 0:00:38]} 18. a5 {[%emt 0:01:20]} a6 {[%emt 0:00:34]} 19. Rb1 {[%emt 0:00:32]} h4 {[%emt 0:01:01]} 20. Bd2 {[%emt 0:00:42]} Rg5 {[%emt 0:01:32]} 21. g3 {[%emt 0:00:22]} Bb5 {[%emt 0:01:58]} 22. Rxb5 {[%emt 0:00:22]} axb5 {[%emt 0:00:24]} 23. Qxb5 {[%emt 0:00:22]} hxg3 {[%emt 0:00:48]} 24. fxg3 {[%emt 0:00:35]} Qa6 {[%emt 0:02:17]} 25. Qxa6 {[%emt 0:00:41]} bxa6 {[%emt 0:00:21]} 26. Rb1 {[%emt 0:00:21]} Rg6 {[%emt 0:00:53]} 27. Rb7 {[%emt 0:00:28]} Rc8 {[%emt 0:00:25]} 28. Bb4 {[%emt 0:00:45]} Kf8 {[%emt 0:00:49]} 29. Nd2 {[%emt 0:00:29]} f5 {[%emt 0:00:36]} 30. Nc4 {[%emt 0:00:22]} Ke8 {[%emt 0:00:56]} 31. Ne5 {[%emt 0:00:50]} Re6 {[%emt 0:00:21]} 32. Kf2 {[%emt 0:00:43]} g5 {[%emt 0:00:27]} 33. Bd2 {[%emt 0:00:41]} Bxc5 {[%emt 0:00:39]} 34. h4 {[%emt 0:00:52]} gxh4 {[%emt 0:00:26]} 35. gxh4 {[%emt 0:00:21]} Be7 {[%emt 0:00:30]} 36. h5 {[%emt 0:00:24]} Rh6 {[%emt 0:00:33]} 37. d5 {[%emt 0:00:36]} Rxh5 {[%emt 0:00:29]} 38. Kg3 {[%emt 0:00:39]} Bd6 {[%emt 0:00:36]} 39. Kf4 {[%emt 0:00:21]} Rh2 {[%emt 0:00:42]} 40. Bc3 {[%emt 0:00:21]} Rf2+ {[%emt 0:00:27]} 41. Kg5 {[%emt 0:00:21]} Ke7 {[%emt 0:00:40]} 42. Ng6+ {[%emt 0:00:50]} Kf7 {[%emt 0:00:21]} 43. Ne5+ {[%emt 0:00:33]} Bxe5 {[%emt 0:00:54]} 44. Bxe5 {[%emt 0:00:22]} Rg8+ {[%emt 0:00:45]} 45. Kh5 {[%emt 0:00:28]} Rc2 {[%emt 0:00:28]} 46. Bxc7 {[%emt 0:00:36]} Kf6 {[%emt 0:00:29]} 47. Rb6+ {[%emt 0:00:22]} Kf7 {[%emt 0:00:28]} 48. Rb7 {[%emt 0:00:21]} Kf6 {[%emt 0:00:27]} 49. Rb6+ {[%emt 0:00:21]} Kf7 {[%emt 0:00:31]} 1/2-1/2

[Event "EWIRCC 2019"]
[Site "Monte-Carlo"]
[Date "2019.12.01"]
[Round "6.19"]
[White "Buksa, Nataliya"]
[Black "Nicoara, Malina"]
[Result "1-0"]
[ECO "B31"]
[WhiteElo "2410"]
[BlackElo "2066"]
[Annotator "NA"]
[PlyCount "71"]
[EventDate "2019.11.28"]
[EventType "swiss"]
[EventCountry "MNC"]
[SourceTitle "playchess.com"]
[Source "ChessBase"]
[SourceQuality "1"]
[TimeControl "5400+30"]

1. e4 {[%emt 1:15:12]} c5 {[%emt 1:15:12]} 2. Nf3 {[%emt 0:00:21]} Nc6 {[%emt 0:00:21]} 3. Bb5 {[%emt 0:00:21]} g6 {[%emt 0:00:25]} 4. Bxc6 {[%emt 0:00:22]} dxc6 {[%emt 0:00:23]} 5. d3 {[%emt 0:00:22]} Bg7 {[%emt 0:00:21]} 6. h3 {[%emt 0:00:21]} Nf6 {[%emt 0:00:30]} 7. Nc3 {[%emt 0:00:23]} b5 {[%emt 0:00:37]} 8. Be3 {[%emt 0:00:26]} Nd7 {[%emt 0:00:38]} 9. Rb1 {[%emt 0:00:57]} Qa5 {[%emt 0:01:44]} 10. Qd2 {[%emt 0:00:21]} b4 {[%emt 0:00:30]} 11. Ne2 {[%emt 0:00:30]} Qxa2 {[%emt 0:00:21]} 12. O-O {[%emt 0:00:22]} Qa5 {[%emt 0:01:28]} 13. Bh6 {[%emt 0:00:32]} Bf6 {[%emt 0:00:41]} 14. Ng3 {[%emt 0:00:53]} Ba6 {[%emt 0:01:18]} 15. Rfe1 {[%emt 0:00:23]} Qc7 {[%emt 0:00:36]} 16. Qe3 {[%emt 0:02:53]} e5 {[%emt 0:01:28]} 17. c3 {[%emt 0:01:00]} Qd6 {[%emt 0:01:09]} 18. Red1 {[%emt 0:00:23]} Qe7 {[%emt 0:00:36]} 19. Ra1 {[%emt 0:00:46]} Bb7 {[%emt 0:00:25]} 20. cxb4 {[%emt 0:01:17]} a6 {[%emt 0:02:09]} 21. bxc5 {[%emt 0:00:22]} Qxc5 {[%emt 0:00:21]} 22. d4 {[%emt 0:00:21]} exd4 {[%emt 0:00:31]} 23. Nxd4 {[%emt 0:00:25]} Ne5 {[%emt 0:01:46]} 24. Rac1 {[%emt 0:00:40]} Qb4 {[%emt 0:01:40]} 25. Qf4 {[%emt 0:00:58]} Nd7 {[%emt 0:03:42]} 26. Nxc6 {[%emt 0:00:27]} Bxc6 {[%emt 0:00:25]} 27. Rxc6 {[%emt 0:00:21]} Be5 {[%emt 0:00:21]} 28. Qg4 {[%emt 0:01:10]} Rd8 {[%emt 0:01:11]} 29. Rc8 {[%emt 0:00:38]} Ke7 {[%emt 0:00:51]} 30. Bg5+ {[%emt 0:04:01]} Nf6 {[%emt 0:00:21]} 31. Bxf6+ {[%emt 0:00:35]} Bxf6 {[%emt 0:00:21]} 32. Rc7+ {[%emt 0:00:26]} Kf8 {[%emt 0:00:56]} 33. Rdd7 {[%emt 0:01:34]} Rxd7 {[%emt 0:00:57]} 34. Qxd7 {[%emt 0:00:21]} Qb3 {[%emt 0:00:33]} 35. e5 {[%emt 0:00:36]} Bxe5 {[%emt 0:00:31]} 36. Qe7+ {[%emt 0:00:22]} 1-0

[Event "EWIRCC 2019"]
[Site "Monte-Carlo"]
[Date "2019.12.01"]
[Round "6.20"]
[White "Andric, Jelena"]
[Black "Ovod, Evgenija"]
[Result "0-1"]
[ECO "A13"]
[WhiteElo "2076"]
[BlackElo "2347"]
[Annotator "NA"]
[PlyCount "130"]
[EventDate "2019.11.28"]
[EventType "swiss"]
[EventCountry "MNC"]
[SourceTitle "playchess.com"]
[Source "ChessBase"]
[SourceQuality "1"]
[TimeControl "5400+30"]

1. c4 {[%emt 1:15:11]} e6 {[%emt 1:15:12]} 2. Nf3 {[%emt 0:00:27]} d5 {[%emt 0:00:21]} 3. g3 {[%emt 0:00:40]} dxc4 {[%emt 0:00:27]} 4. Bg2 {[%emt 0:00:56]} Nf6 {[%emt 0:00:28]} 5. Qa4+ {[%emt 0:01:19]} Nbd7 {[%emt 0:00:22]} 6. Qxc4 {[%emt 0:00:29]} c5 {[%emt 0:00:22]} 7. O-O {[%emt 0:00:53]} b6 {[%emt 0:00:28]} 8. b3 {[%emt 0:00:45]} Bb7 {[%emt 0:00:28]} 9. Bb2 {[%emt 0:00:45]} Rc8 {[%emt 0:01:09]} 10. d3 {[%emt 0:00:46]} Bd6 {[%emt 0:00:47]} 11. Nbd2 {[%emt 0:00:34]} O-O {[%emt 0:00:25]} 12. Rac1 {[%emt 0:00:41]} Qe7 {[%emt 0:01:20]} 13. Qc2 {[%emt 0:00:53]} b5 {[%emt 0:00:34]} 14. Qb1 {[%emt 0:00:42]} Rfd8 {[%emt 0:01:28]} 15. Qa1 {[%emt 0:00:39]} a6 {[%emt 0:13:39]} 16. e4 {[%emt 0:01:45]} e5 {[%emt 0:00:00]} 17. Nh4 {[%emt 0:02:26]} g6 {[%emt 0:00:00]} 18. Bh3 {[%emt 0:00:34]} Rb8 {[%emt 0:00:00]} 19. Ng2 {[%emt 0:00:41]} Nf8 {[%emt 0:00:00]} 20. f4 {[%emt 0:01:03]} N6d7 {[%emt 0:00:00]} 21. Nf3 {[%emt 0:00:59]} f6 {[%emt 0:00:00]} 22. Rc2 {[%emt 0:01:23]} Ne6 {[%emt 0:00:00]} 23. fxe5 {[%emt 0:01:00]} fxe5 {[%emt 0:00:00]} 24. Bxe6+ {[%emt 0:01:30]} Qxe6 {[%emt 0:00:00]} 25. Ng5 {[%emt 0:00:32]} Qe7 {[%emt 0:00:00]} 26. Nf7 {[%emt 0:01:12]} Rf8 {[%emt 0:00:00]} 27. Nxd6 {[%emt 0:00:53]} Qxd6 {[%emt 0:00:07]} 28. Rd2 {[%emt 0:01:34]} Rxf1+ {[%emt 0:01:21]} 29. Qxf1 {[%emt 0:00:21]} Bxe4 {[%emt 0:00:23]} 30. Qe2 {[%emt 0:00:46]} Bc6 {[%emt 0:00:30]} 31. Ne3 {[%emt 0:00:32]} Rf8 {[%emt 0:00:38]} 32. Qe1 {[%emt 0:00:37]} h5 {[%emt 0:01:16]} 33. Bc3 {[%emt 0:01:00]} Kh7 {[%emt 0:01:02]} 34. a3 {[%emt 0:00:21]} Qe6 {[%emt 0:01:03]} 35. b4 {[%emt 0:00:44]} Qb3 {[%emt 0:00:35]} 36. Rb2 {[%emt 0:00:42]} Qe6 {[%emt 0:00:48]} 37. Rf2 {[%emt 0:00:34]} Rxf2 {[%emt 0:01:31]} 38. Qxf2 {[%emt 0:00:20]} Kg7 {[%emt 0:00:46]} 39. Qb2 {[%emt 0:00:56]} Kf7 {[%emt 0:00:52]} 40. Qf2+ {[%emt 0:00:21]} Ke8 {[%emt 0:00:23]} 41. Qb2 {[%emt 0:00:40]} Bb7 {[%emt 0:00:26]} 42. Qf2 {[%emt 0:00:34]} Qc6 {[%emt 0:00:28]} 43. Kf1 {[%emt 0:00:32]} Qd6 {[%emt 0:00:51]} 44. Ke2 {[%emt 0:01:48]} Qe6 {[%emt 0:00:26]} 45. Kd2 {[%emt 0:00:00]} cxb4 {[%emt 0:01:06]} 46. Bxb4 {[%emt 0:00:00]} Nf6 {[%emt 0:00:27]} 47. Qe1 {[%emt 0:00:50]} Kd7 {[%emt 0:00:28]} 48. Nc2 {[%emt 0:00:34]} Nd5 {[%emt 0:00:30]} 49. Qe4 {[%emt 0:00:28]} Bc6 {[%emt 0:00:27]} 50. Qe2 {[%emt 0:00:46]} Qf5 {[%emt 0:00:44]} 51. Ba5 {[%emt 0:00:25]} Nf6 {[%emt 0:00:34]} 52. Ne3 {[%emt 0:00:24]} Qe6 {[%emt 0:00:23]} 53. Nc2 {[%emt 0:00:38]} e4 {[%emt 0:00:26]} 54. d4 {[%emt 0:00:40]} Qd5 {[%emt 0:00:41]} 55. Bc3 {[%emt 0:00:26]} Qb3 {[%emt 0:00:31]} 56. Ne3 {[%emt 0:00:32]} Qxa3 {[%emt 0:00:25]} 57. d5 {[%emt 0:00:29]} Qa2+ {[%emt 0:00:24]} 58. Nc2 {[%emt 0:00:23]} Nxd5 {[%emt 0:00:25]} 59. Bg7 {[%emt 0:00:37]} Nb4 {[%emt 0:00:33]} 60. Kc1 {[%emt 0:00:35]} Qxc2+ {[%emt 0:00:25]} 61. Qxc2 {[%emt 0:00:21]} Nxc2 {[%emt 0:00:21]} 62. Kxc2 {[%emt 0:00:20]} a5 {[%emt 0:00:22]} 63. Kb3 {[%emt 0:00:25]} Kd6 {[%emt 0:00:25]} 64. Bf8+ {[%emt 0:00:28]} Ke5 {[%emt 0:00:24]} 65. Bg7+ {[%emt 0:00:23]} Kd5 {[%emt 0:00:22]} 0-1

[Event "EWIRCC 2019"]
[Site "Monte-Carlo"]
[Date "2019.12.01"]
[Round "7.1"]
[White "Batsiashvili, Nino"]
[Black "Rogule, Laura"]
[Result "1-0"]
[ECO "A28"]
[WhiteElo "2422"]
[BlackElo "2293"]
[Annotator "NA"]
[PlyCount "67"]
[EventDate "2019.11.28"]
[EventType "swiss"]
[EventCountry "MNC"]
[SourceTitle "playchess.com"]
[Source "ChessBase"]
[SourceQuality "1"]
[TimeControl "5400+30"]

1. c4 {[%emt 1:15:12]} e5 {[%emt 1:15:20]} 2. Nc3 {[%emt 0:00:23]} Nf6 {[%emt 0:00:31]} 3. Nf3 {[%emt 0:00:21]} Nc6 {[%emt 0:00:36]} 4. e4 {[%emt 0:00:21]} Bb4 {[%emt 0:02:18]} 5. d3 {[%emt 0:00:22]} d6 {[%emt 0:00:26]} 6. a3 {[%emt 0:00:24]} Bc5 {[%emt 0:00:51]} 7. b4 {[%emt 0:00:22]} Bb6 {[%emt 0:01:24]} 8. Na4 {[%emt 0:00:23]} h6 {[%emt 0:01:37]} 9. Nxb6 {[%emt 0:01:14]} axb6 {[%emt 0:00:22]} 10. b5 {[%emt 0:00:35]} Ne7 {[%emt 0:00:52]} 11. g3 {[%emt 0:00:25]} Be6 {[%emt 0:00:58]} 12. Bg2 {[%emt 0:00:35]} Qd7 {[%emt 0:00:49]} 13. O-O {[%emt 0:01:57]} O-O {[%emt 0:00:54]} 14. Nh4 {[%emt 0:01:24]} Bh3 {[%emt 0:01:11]} 15. f4 {[%emt 0:00:21]} Bxg2 {[%emt 0:00:34]} 16. Kxg2 {[%emt 0:00:22]} Nh7 {[%emt 0:05:53]} 17. f5 {[%emt 0:02:01]} f6 {[%emt 0:00:22]} 18. Nf3 {[%emt 0:01:53]} Ra5 {[%emt 0:01:47]} 19. Rb1 {[%emt 0:00:42]} Rfa8 {[%emt 0:00:36]} 20. h4 {[%emt 0:00:21]} d5 {[%emt 0:00:53]} 21. cxd5 {[%emt 0:00:55]} Rxb5 {[%emt 0:00:22]} 22. Rxb5 {[%emt 0:01:20]} Qxb5 {[%emt 0:00:21]} 23. d4 {[%emt 0:00:21]} exd4 {[%emt 0:00:34]} 24. Nxd4 {[%emt 0:00:24]} Qc4 {[%emt 0:00:32]} 25. Re1 {[%emt 0:01:12]} Nf8 {[%emt 0:00:58]} 26. Ne6 {[%emt 0:00:42]} b5 {[%emt 0:01:17]} 27. Qg4 {[%emt 0:01:47]} Nxe6 28. dxe6 {[%emt 0:00:21]} Kh7 {[%emt 0:01:19]} 29. Qh5 {[%emt 0:01:12]} Nc6 {[%emt 0:00:36]} 30. Bxh6 {[%emt 0:00:38]} gxh6 {[%emt 0:00:25]} 31. Qg6+ {[%emt 0:00:30]} Kh8 {[%emt 0:00:21]} 32. Qxf6+ {[%emt 0:00:24]} Kg8 {[%emt 0:00:32]} 33. Qg6+ {[%emt 0:00:26]} Kh8 {[%emt 0:00:22]} 34. f6 {[%emt 0:00:39]} 1-0